[Event "Titled Tuesday Blitz October 11 Late 2022"]
[White "Ovezdurdyyeva, Jemal"]
[Black "Osmonbekov, Talaibek"]
[WhiteFideId "14001888"]
[BlackFideId "2017253"]
[WhiteElo "1961"]
[BlackElo "2135"]
[Result "1-0"]
[Round "07"]
[TimeControl "180+1"]
[Date "2022.10.12"]
[WhiteClock "0:01:10"]
[BlackClock "0:00:07"]

1. e4 {[%clk 0:03:00]}  c5 {[%clk 0:02:59]} 2. Nf3 {[%clk 0:03:00]}  d6 {[%clk 0:02:59]} 3. d4 {[%clk 0:02:59]}  cxd4 {[%clk 0:03:00]} 4. Nxd4 {[%clk 0:03:00]}  Nf6 {[%clk 0:03:01]} 5. Nc3 {[%clk 0:03:00]}  g6 {[%clk 0:03:02]} 6. Be2 {[%clk 0:02:58]}  Bg7 {[%clk 0:03:01]} 7. Be3 {[%clk 0:02:58]}  O-O {[%clk 0:03:02]} 8. O-O {[%clk 0:02:59]}  Nc6 {[%clk 0:03:01]} 9. Qd2 {[%clk 0:02:59]}  Ng4 {[%clk 0:02:55]} 10. Nxc6 {[%clk 0:02:55]}  bxc6 {[%clk 0:02:55]} 11. Bf4 {[%clk 0:02:54]}  Qb6 {[%clk 0:02:32]} 12. Rab1 {[%clk 0:02:51]}  Be6 {[%clk 0:02:29]} 13. h3 {[%clk 0:02:49]}  Ne5 {[%clk 0:02:28]} 14. Bh6 {[%clk 0:02:47]}  Nc4 {[%clk 0:02:20]} 15. Bxc4 {[%clk 0:02:44]}  Bxc4 {[%clk 0:02:19]} 16. Bxg7 {[%clk 0:02:44]}  Kxg7 {[%clk 0:02:18]} 17. Na4 {[%clk 0:02:41]}  Qa6 {[%clk 0:02:15]} 18. Rfe1 {[%clk 0:02:33]}  Qxa4 {[%clk 0:02:08]} 19. b3 {[%clk 0:02:33]}  Bxb3 {[%clk 0:02:05]} 20. axb3 {[%clk 0:02:32]}  Qb5 {[%clk 0:01:58]} 21. c4 {[%clk 0:02:27]}  Qc5 {[%clk 0:01:56]} 22. Qc3+ {[%clk 0:02:21]}  Kg8 {[%clk 0:01:47]} 23. b4 {[%clk 0:02:21]}  Qb6 {[%clk 0:01:46]} 24. e5 {[%clk 0:02:18]}  dxe5 {[%clk 0:01:35]} 25. Rxe5 {[%clk 0:02:16]}  e6 {[%clk 0:01:31]} 26. Ra5 {[%clk 0:02:08]}  Rfd8 {[%clk 0:01:24]} 27. Rba1 {[%clk 0:02:07]}  Rd7 {[%clk 0:01:24]} 28. Ra6 {[%clk 0:02:04]}  Qc7 {[%clk 0:01:16]} 29. Qf3 {[%clk 0:02:01]}  Rc8 {[%clk 0:00:59]} 30. g3 {[%clk 0:01:53]}  Qb8 {[%clk 0:00:27]} 31. Rxc6 {[%clk 0:01:49]}  Rxc6 {[%clk 0:00:27]} 32. Qxc6 {[%clk 0:01:49]}  Rc7 {[%clk 0:00:27]} 33. Qd6 {[%clk 0:01:48]}  Rb7 {[%clk 0:00:23]} 34. Qxb8+ {[%clk 0:01:44]}  Rxb8 {[%clk 0:00:24]} 35. b5 {[%clk 0:01:44]}  Rc8 {[%clk 0:00:24]} 36. Ra4 {[%clk 0:01:39]}  Kg7 {[%clk 0:00:22]} 37. Kf1 {[%clk 0:01:39]}  Kf6 {[%clk 0:00:22]} 38. f4 {[%clk 0:01:39]}  h5 {[%clk 0:00:19]} 39. Ke2 {[%clk 0:01:38]}  Kf5 {[%clk 0:00:19]} 40. Kf3 {[%clk 0:01:32]}  Rc7 {[%clk 0:00:17]} 41. g4+ {[%clk 0:01:30]}  hxg4+ {[%clk 0:00:17]} 42. hxg4+ {[%clk 0:01:31]}  Kf6 {[%clk 0:00:17]} 43. Ke4 {[%clk 0:01:31]}  Ke7 {[%clk 0:00:17]} 44. Kd4 {[%clk 0:01:30]}  Kd6 {[%clk 0:00:16]} 45. Ra6+ {[%clk 0:01:29]}  Kd7 {[%clk 0:00:12]} 46. c5 {[%clk 0:01:30]}  f6 {[%clk 0:00:12]} 47. Ra1 {[%clk 0:01:24]}  Rb7 {[%clk 0:00:11]} 48. Kc4 {[%clk 0:01:23]}  Ke7 {[%clk 0:00:10]} 49. Rh1 {[%clk 0:01:23]}  Kf8 {[%clk 0:00:06]} 50. c6 {[%clk 0:01:18]}  Re7 {[%clk 0:00:06]} 51. Kc5 {[%clk 0:01:17]}  e5 {[%clk 0:00:05]} 52. fxe5 {[%clk 0:01:15]}  fxe5 {[%clk 0:00:06]} 53. Kd6 {[%clk 0:01:14]}  e4 {[%clk 0:00:05]} 54. Rh8+ {[%clk 0:01:10]}  Kg7 {[%clk 0:00:05]} 55. Kxe7 {[%clk 0:01:10]}  Kxh8 {[%clk 0:00:06]} 56. c7 {[%clk 0:01:11]}  e3 {[%clk 0:00:06]} 57. c8=Q+ {[%clk 0:01:11]}  Kh7 {[%clk 0:00:07]} 58. Qc2 {[%clk 0:01:10]} 1-0


[Site "https://www.chess.com"]

[Event "Titled Tuesday Blitz October 11 Late 2022"]
[White "Owen, Michael"]
[Black "Leschinsky, Gary"]
[WhiteFideId "7104820"]
[BlackFideId "30951321"]
[WhiteElo "1943"]
[BlackElo "1855"]
[Result "0-1"]
[Round "07"]
[TimeControl "180+1"]
[Date "2022.10.12"]
[WhiteClock "0:00:01"]
[BlackClock "0:00:15"]

1. e4 {[%clk 0:02:57]}  c5 {[%clk 0:03:00]} 2. Nf3 {[%clk 0:02:57]}  Nc6 {[%clk 0:02:58]} 3. d4 {[%clk 0:02:55]}  cxd4 {[%clk 0:02:58]} 4. Nxd4 {[%clk 0:02:56]}  e6 {[%clk 0:02:56]} 5. Nb3 {[%clk 0:02:45]}  Nf6 {[%clk 0:02:54]} 6. Nc3 {[%clk 0:02:38]}  Bb4 {[%clk 0:02:54]} 7. Bg5 {[%clk 0:02:32]}  h6 {[%clk 0:02:51]} 8. Bd2 {[%clk 0:02:23]}  d5 {[%clk 0:02:45]} 9. exd5 {[%clk 0:02:21]}  exd5 {[%clk 0:02:46]} 10. a3 {[%clk 0:02:17]}  Bd6 {[%clk 0:02:42]} 11. Nb5 {[%clk 0:02:15]}  Be5 {[%clk 0:02:34]} 12. Qe2 {[%clk 0:02:07]}  O-O {[%clk 0:02:28]} 13. O-O-O {[%clk 0:02:06]}  a6 {[%clk 0:02:24]} 14. Nc3 {[%clk 0:01:54]}  d4 {[%clk 0:02:21]} 15. Na4 {[%clk 0:01:39]}  Bf5 {[%clk 0:02:20]} 16. f3 {[%clk 0:01:36]}  Rc8 {[%clk 0:02:09]} 17. Nac5 {[%clk 0:01:35]}  Re8 {[%clk 0:02:04]} 18. Qf2 {[%clk 0:01:34]}  b6 {[%clk 0:01:46]} 19. Nd3 {[%clk 0:01:16]}  Bb8 {[%clk 0:01:35]} 20. g4 {[%clk 0:01:15]}  Bh7 {[%clk 0:01:23]} 21. h4 {[%clk 0:01:11]}  Nd5 {[%clk 0:01:04]} 22. g5 {[%clk 0:01:04]}  h5 {[%clk 0:00:59]} 23. f4 {[%clk 0:00:58]}  Ne3 {[%clk 0:00:57]} 24. Be2 {[%clk 0:00:18]}  Nxd1 {[%clk 0:00:55]} 25. Rxd1 {[%clk 0:00:16]}  Na5 {[%clk 0:00:51]} 26. Nxa5 {[%clk 0:00:15]}  bxa5 {[%clk 0:00:52]} 27. Kb1 {[%clk 0:00:13]}  Qc7 {[%clk 0:00:41]} 28. Rc1 {[%clk 0:00:12]}  Qe7 {[%clk 0:00:36]} 29. Bxh5 {[%clk 0:00:12]}  Bxd3 {[%clk 0:00:34]} 30. cxd3 {[%clk 0:00:12]}  Rxc1+ {[%clk 0:00:33]} 31. Bxc1 {[%clk 0:00:12]}  Qe1 {[%clk 0:00:31]} 32. Qxd4 {[%clk 0:00:10]}  Rc8 {[%clk 0:00:22]} 33. Qe3 {[%clk 0:00:10]}  Qh1 {[%clk 0:00:17]} 34. Bg4 {[%clk 0:00:07]}  Ba7 {[%clk 0:00:16]} 35. Qd2 {[%clk 0:00:06]}  Rc7 {[%clk 0:00:16]} 36. h5 {[%clk 0:00:04]}  Bd4 {[%clk 0:00:16]} 37. h6 {[%clk 0:00:04]}  g6 {[%clk 0:00:15]} 38. b3 {[%clk 0:00:01]}  Qg1 {[%clk 0:00:15]} 39. Be2 {[%clk 0:00:01]}  Be3 {[%clk 0:00:15]} 0-1


[Site "https://www.chess.com"]

[Event "Titled Tuesday Blitz October 11 Late 2022"]
[White "Petrovic, Aleksa"]
[Black "De Souza, Cristiano Gomes"]
[WhiteFideId "967629"]
[BlackFideId "2151758"]
[WhiteElo "2242"]
[BlackElo "2068"]
[Result "1/2-1/2"]
[Round "07"]
[TimeControl "180+1"]
[Date "2022.10.12"]
[WhiteClock "0:00:27"]
[BlackClock "0:00:11"]

1. d4 {[%clk 0:03:00]}  Nf6 {[%clk 0:02:59]} 2. c4 {[%clk 0:03:00]}  g6 {[%clk 0:02:58]} 3. f3 {[%clk 0:03:00]}  Bg7 {[%clk 0:02:58]} 4. e4 {[%clk 0:03:00]}  d6 {[%clk 0:02:58]} 5. Nc3 {[%clk 0:03:00]}  O-O {[%clk 0:02:59]} 6. Nge2 {[%clk 0:03:01]}  Nc6 {[%clk 0:02:59]} 7. Be3 {[%clk 0:03:00]}  a6 {[%clk 0:02:56]} 8. Qd2 {[%clk 0:03:00]}  Rb8 {[%clk 0:02:54]} 9. Rc1 {[%clk 0:03:01]}  Bd7 {[%clk 0:02:53]} 10. Nd1 {[%clk 0:03:01]}  e5 {[%clk 0:02:51]} 11. d5 {[%clk 0:03:01]}  Ne7 {[%clk 0:02:51]} 12. g3 {[%clk 0:02:58]}  Ne8 {[%clk 0:02:50]} 13. Nf2 {[%clk 0:02:53]}  f5 {[%clk 0:02:49]} 14. Bg2 {[%clk 0:02:53]}  Nf6 {[%clk 0:02:48]} 15. O-O {[%clk 0:02:52]}  h5 {[%clk 0:02:40]} 16. Bh6 {[%clk 0:02:42]}  Kh7 {[%clk 0:02:40]} 17. Bxg7 {[%clk 0:02:42]}  Kxg7 {[%clk 0:02:41]} 18. c5 {[%clk 0:02:39]}  Bb5 {[%clk 0:02:37]} 19. Rfe1 {[%clk 0:02:02]}  Qd7 {[%clk 0:02:22]} 20. cxd6 {[%clk 0:01:56]}  cxd6 {[%clk 0:02:18]} 21. Nc3 {[%clk 0:01:56]}  Rbc8 {[%clk 0:02:14]} 22. b3 {[%clk 0:01:49]}  a5 {[%clk 0:01:52]} 23. Nxb5 {[%clk 0:01:41]}  Qxb5 {[%clk 0:01:51]} 24. Bf1 {[%clk 0:01:41]}  Qb6 {[%clk 0:01:50]} 25. Kg2 {[%clk 0:01:40]}  fxe4 {[%clk 0:01:47]} 26. fxe4 {[%clk 0:01:41]}  Rxc1 {[%clk 0:01:28]} 27. Rxc1 {[%clk 0:01:42]}  Neg8 {[%clk 0:01:17]} 28. Qc3 {[%clk 0:01:12]}  Qxf2+ {[%clk 0:01:07]} 29. Kxf2 {[%clk 0:01:10]}  Nxe4+ {[%clk 0:01:00]} 30. Ke2 {[%clk 0:01:09]}  Nxc3+ {[%clk 0:00:59]} 31. Rxc3 {[%clk 0:01:10]}  Nf6 {[%clk 0:00:58]} 32. Bg2 {[%clk 0:01:05]}  Ng4 {[%clk 0:00:45]} 33. Rc7+ {[%clk 0:01:00]}  Kh6 {[%clk 0:00:43]} 34. Be4 {[%clk 0:00:50]}  Rf2+ {[%clk 0:00:41]} 35. Kd3 {[%clk 0:00:47]}  Rxh2 {[%clk 0:00:41]} 36. Rd7 {[%clk 0:00:45]}  Nf2+ {[%clk 0:00:35]} 37. Ke3 {[%clk 0:00:44]}  Nxe4 {[%clk 0:00:35]} 38. Kxe4 {[%clk 0:00:44]}  Rxa2 {[%clk 0:00:35]} 39. Rxd6 {[%clk 0:00:43]}  Rb2 {[%clk 0:00:33]} 40. Rb6 {[%clk 0:00:43]}  a4 {[%clk 0:00:33]} 41. d6 {[%clk 0:00:39]}  axb3 {[%clk 0:00:25]} 42. Kd3 {[%clk 0:00:39]}  e4+ {[%clk 0:00:18]} 43. Kxe4 {[%clk 0:00:34]}  Rd2 {[%clk 0:00:17]} 44. Rxb3 {[%clk 0:00:34]}  Kg5 {[%clk 0:00:16]} 45. Rxb7 {[%clk 0:00:25]}  Rxd6 {[%clk 0:00:15]} 46. Kf3 {[%clk 0:00:25]}  Rd3+ {[%clk 0:00:14]} 47. Kg2 {[%clk 0:00:25]}  Kg4 {[%clk 0:00:13]} 48. Rb4+ {[%clk 0:00:25]}  Kg5 {[%clk 0:00:13]} 49. Rb5+ {[%clk 0:00:25]}  Kh6 {[%clk 0:00:13]} 50. Rb6 {[%clk 0:00:25]}  Kg5 {[%clk 0:00:13]} 51. Rb5+ {[%clk 0:00:26]}  Kf6 {[%clk 0:00:12]} 52. Rb6+ {[%clk 0:00:26]}  Kf5 {[%clk 0:00:11]} 53. Rb5+ {[%clk 0:00:26]}  Kf6 {[%clk 0:00:11]} 54. Rb6+ {[%clk 0:00:26]}  Kg5 {[%clk 0:00:11]} 55. Rb5+ {[%clk 0:00:27]} 1/2-1/2


[Site "https://www.chess.com"]

[Event "Titled Tuesday Blitz October 11 Late 2022"]
[White "Potula, Kapish"]
[Black "Roberson, Peter T"]
[WhiteFideId "30903270"]
[BlackFideId "412384"]
[WhiteElo "1999"]
[BlackElo "2346"]
[Result "0-1"]
[Round "07"]
[TimeControl "180+1"]
[Date "2022.10.12"]
[WhiteClock "0:00:17"]
[BlackClock "0:02:30"]

1. d4 {[%clk 0:03:00]}  d6 {[%clk 0:02:52]} 2. e4 {[%clk 0:02:55]}  Nf6 {[%clk 0:02:52]} 3. Nc3 {[%clk 0:02:55]}  c6 {[%clk 0:02:52]} 4. Bc4 {[%clk 0:02:27]}  d5 {[%clk 0:02:47]} 5. exd5 {[%clk 0:02:16]}  cxd5 {[%clk 0:02:48]} 6. Bd3 {[%clk 0:02:04]}  Nc6 {[%clk 0:02:47]} 7. Nge2 {[%clk 0:02:01]}  Bg4 {[%clk 0:02:48]} 8. h3 {[%clk 0:01:49]}  Bh5 {[%clk 0:02:48]} 9. g4 {[%clk 0:01:49]}  Bg6 {[%clk 0:02:48]} 10. Bf4 {[%clk 0:01:08]}  e6 {[%clk 0:02:48]} 11. a3 {[%clk 0:01:00]}  Bd6 {[%clk 0:02:47]} 12. Qd2 {[%clk 0:00:59]}  a6 {[%clk 0:02:42]} 13. O-O-O {[%clk 0:00:32]}  b5 {[%clk 0:02:40]} 14. Bg3 {[%clk 0:00:24]}  b4 {[%clk 0:02:34]} 15. axb4 {[%clk 0:00:22]}  Bxb4 {[%clk 0:02:35]} 16. f4 {[%clk 0:00:22]}  Qa5 {[%clk 0:02:31]} 17. f5 {[%clk 0:00:19]}  Qa1+ {[%clk 0:02:29]} 18. Nb1 {[%clk 0:00:18]}  Bxd2+ {[%clk 0:02:30]} 19. Kxd2 {[%clk 0:00:17]}  exf5 {[%clk 0:02:31]} 20. gxf5 {[%clk 0:00:17]}  Bh5 {[%clk 0:02:31]} 21. Nf4 {[%clk 0:00:17]}  Bxd1 {[%clk 0:02:30]} 0-1


[Site "https://www.chess.com"]

[Event "Titled Tuesday Blitz October 11 Late 2022"]
[White "Remolar Gallen, Jose"]
[Black "Machidon, Cristi"]
[WhiteFideId "2215187"]
[BlackFideId "13904590"]
[WhiteElo "2214"]
[BlackElo "2312"]
[Result "0-1"]
[Round "07"]
[TimeControl "180+1"]
[Date "2022.10.12"]
[WhiteClock "0:00:08"]
[BlackClock "0:00:22"]

1. e4 {[%clk 0:03:00]}  c6 {[%clk 0:02:59]} 2. d4 {[%clk 0:02:59]}  d5 {[%clk 0:03:00]} 3. e5 {[%clk 0:03:00]}  Bf5 {[%clk 0:03:00]} 4. g4 {[%clk 0:03:00]}  Be4 {[%clk 0:02:59]} 5. f3 {[%clk 0:03:00]}  Bg6 {[%clk 0:02:59]} 6. Ne2 {[%clk 0:02:59]}  e6 {[%clk 0:02:55]} 7. h4 {[%clk 0:02:59]}  h5 {[%clk 0:02:55]} 8. Nf4 {[%clk 0:02:47]}  Bh7 {[%clk 0:02:54]} 9. g5 {[%clk 0:02:46]}  Bf5 {[%clk 0:02:53]} 10. Nc3 {[%clk 0:02:36]}  c5 {[%clk 0:02:51]} 11. Nce2 {[%clk 0:02:24]}  Nc6 {[%clk 0:02:46]} 12. c3 {[%clk 0:02:23]}  Qb6 {[%clk 0:02:41]} 13. Bh3 {[%clk 0:02:10]}  Nge7 {[%clk 0:02:27]} 14. g6 {[%clk 0:01:04]}  Bxg6 {[%clk 0:01:37]} 15. Be3 {[%clk 0:01:04]}  cxd4 {[%clk 0:01:25]} 16. cxd4 {[%clk 0:00:55]}  Bf5 {[%clk 0:01:23]} 17. Bf1 {[%clk 0:00:34]}  Nxe5 {[%clk 0:01:22]} 18. Qa4+ {[%clk 0:00:21]}  N5c6 {[%clk 0:01:20]} 19. Kf2 {[%clk 0:00:15]}  Qb4 {[%clk 0:01:08]} 20. Qd1 {[%clk 0:00:12]}  Nc8 {[%clk 0:01:06]} 21. Rc1 {[%clk 0:00:10]}  Bd6 {[%clk 0:01:03]} 22. Nd3 {[%clk 0:00:08]}  Qa5 {[%clk 0:00:59]} 23. b3 {[%clk 0:00:05]}  N8e7 {[%clk 0:00:53]} 24. Ng3 {[%clk 0:00:05]}  Bg6 {[%clk 0:00:52]} 25. Nc5 {[%clk 0:00:05]}  Rb8 {[%clk 0:00:50]} 26. Be2 {[%clk 0:00:05]}  Bxg3+ {[%clk 0:00:48]} 27. Kxg3 {[%clk 0:00:05]}  Nf5+ {[%clk 0:00:49]} 28. Kf2 {[%clk 0:00:05]}  Nxe3 {[%clk 0:00:49]} 29. Kxe3 {[%clk 0:00:06]}  Ne7 {[%clk 0:00:46]} 30. a4 {[%clk 0:00:04]}  Nf5+ {[%clk 0:00:45]} 31. Kf2 {[%clk 0:00:04]}  O-O {[%clk 0:00:45]} 32. Rg1 {[%clk 0:00:04]}  Rfc8 {[%clk 0:00:39]} 33. Nxe6 {[%clk 0:00:05]}  Rxc1 {[%clk 0:00:29]} 34. Qxc1 {[%clk 0:00:05]}  Qb6 {[%clk 0:00:27]} 35. Nc5 {[%clk 0:00:05]}  Nxd4 {[%clk 0:00:26]} 36. b4 {[%clk 0:00:05]}  Nxe2 {[%clk 0:00:23]} 37. Kxe2 {[%clk 0:00:06]}  Re8+ {[%clk 0:00:23]} 38. Kf2 {[%clk 0:00:06]}  Qxb4 {[%clk 0:00:23]} 39. Re1 {[%clk 0:00:05]}  Qxh4+ {[%clk 0:00:23]} 40. Kf1 {[%clk 0:00:06]}  Rxe1+ {[%clk 0:00:22]} 41. Qxe1 {[%clk 0:00:07]}  Qc4+ {[%clk 0:00:22]} 42. Kg2 {[%clk 0:00:06]}  Qxc5 {[%clk 0:00:22]} 43. Qe8+ {[%clk 0:00:07]}  Kh7 {[%clk 0:00:22]} 44. Qe3 {[%clk 0:00:08]}  Qxe3 {[%clk 0:00:22]} 0-1


[Site "https://www.chess.com"]